[Event "Early-Titled-Tuesday-Blitz-December-26-2023"]
[Site "Chess.com"]
[Date "2023.12.26"]
[Round "11"]
[White "GiorgianBarbosa"]
[Black "LileKoridze"]
[Result "1/2-1/2"]
[WhiteElo "2477"]
[BlackElo "2388"]
[TimeControl "180+1"]
[EndTime "10:06:07 PST"]
[Termination "Game drawn - insufficient material"]

1. c4 {[%clk 0:03:00.9]} 1... e5 {[%clk 0:03:00]} 2. g3 {[%clk 0:03:01.8]} 2...
Nf6 {[%clk 0:02:59.6]} 3. Bg2 {[%clk 0:03:00.5]} 3... Nc6 {[%clk 0:02:59.8]} 4.
Nc3 {[%clk 0:02:58.4]} 4... Bb4 {[%clk 0:02:52]} 5. e3 {[%clk 0:02:57.9]} 5...
O-O {[%clk 0:02:51.6]} 6. Nge2 {[%clk 0:02:57.3]} 6... Bxc3 {[%clk 0:02:49.2]}
7. Nxc3 {[%clk 0:02:57.1]} 7... d6 {[%clk 0:02:49.7]} 8. O-O {[%clk 0:02:56.7]}
8... Bf5 {[%clk 0:02:50]} 9. d3 {[%clk 0:02:54.4]} 9... Nb4 {[%clk 0:02:48.2]}
10. e4 {[%clk 0:02:54.1]} 10... Bg6 {[%clk 0:02:48.6]} 11. Be3 {[%clk
0:02:51.3]} 11... c6 {[%clk 0:02:47.1]} 12. a3 {[%clk 0:02:31.3]} 12... Na6
{[%clk 0:02:45.8]} 13. f4 {[%clk 0:02:27.6]} 13... Bh5 {[%clk 0:02:36.9]} 14.
Qd2 {[%clk 0:02:25.1]} 14... exf4 {[%clk 0:02:33.9]} 15. Bxf4 {[%clk 0:02:22.8]}
15... h6 {[%clk 0:02:33]} 16. Bxh6 {[%clk 0:02:19.5]} 16... gxh6 {[%clk
0:02:31]} 17. Qxh6 {[%clk 0:02:18.1]} 17... Bg6 {[%clk 0:02:31]} 18. Rf4 {[%clk
0:02:13.2]} 18... Nh7 {[%clk 0:02:28.8]} 19. h4 {[%clk 0:02:07.6]} 19... Qb6+
{[%clk 0:02:24.6]} 20. Rf2 {[%clk 0:01:57.7]} 20... Rfe8 {[%clk 0:02:17.6]} 21.
h5 {[%clk 0:01:47.5]} 21... Re6 {[%clk 0:02:17.6]} 22. hxg6 {[%clk 0:01:47.7]}
22... Rxg6 {[%clk 0:02:18]} 23. Qf4 {[%clk 0:01:48.4]} 23... Rf6 {[%clk
0:02:17.8]} 24. Qg4+ {[%clk 0:01:44]} 24... Rg6 {[%clk 0:02:18.1]} 25. Qe2
{[%clk 0:01:42.3]} 25... Rxg3 {[%clk 0:02:17.3]} 26. Kh2 {[%clk 0:01:36.4]}
26... Rg7 {[%clk 0:01:52.5]} 27. Bh3 {[%clk 0:01:33]} 27... Qd4 {[%clk 0:01:51]}
28. Bf5 {[%clk 0:01:20.4]} 28... Qe5+ {[%clk 0:01:50.3]} 29. Kh1 {[%clk
0:01:20]} 29... Kf8 {[%clk 0:01:45.7]} 30. Raf1 {[%clk 0:00:45]} 30... Ke7
{[%clk 0:01:44.6]} 31. Rh2 {[%clk 0:00:36.3]} 31... Ng5 {[%clk 0:01:34.1]} 32.
Rg1 {[%clk 0:00:31.5]} 32... Nc5 {[%clk 0:01:31]} 33. Qe3 {[%clk 0:00:28.5]}
33... Qxh2+ {[%clk 0:01:26.1]} 34. Kxh2 {[%clk 0:00:26.2]} 34... Rh8+ {[%clk
0:01:24.4]} 35. Bh3 {[%clk 0:00:26.3]} 35... Rxh3+ {[%clk 0:01:07.3]} 36. Qxh3
{[%clk 0:00:24.5]} 36... Nxh3 {[%clk 0:01:07.6]} 37. Rxg7 {[%clk 0:00:24.9]}
37... Nf4 {[%clk 0:01:07.8]} 38. d4 {[%clk 0:00:21.4]} 38... Nce6 {[%clk
0:01:05.2]} 39. Rg4 {[%clk 0:00:21.7]} 39... Nd3 {[%clk 0:01:05.1]} 40. d5
{[%clk 0:00:20.3]} 40... Nd4 {[%clk 0:01:00.1]} 41. Rg2 {[%clk 0:00:15.6]} 41...
Ne5 {[%clk 0:00:58.9]} 42. Kg3 {[%clk 0:00:15.1]} 42... Nxc4 {[%clk 0:00:58.3]}
43. dxc6 {[%clk 0:00:14.4]} 43... bxc6 {[%clk 0:00:58.3]} 44. Kf4 {[%clk
0:00:15]} 44... Ne6+ {[%clk 0:00:55.2]} 45. Kf3 {[%clk 0:00:14.3]} 45... Nd4+
{[%clk 0:00:53.1]} 46. Kg3 {[%clk 0:00:14.4]} 46... Ne6 {[%clk 0:00:44.1]} 47.
Kf2 {[%clk 0:00:11.9]} 47... Nf4 {[%clk 0:00:42.7]} 48. Rg4 {[%clk 0:00:11.6]}
48... Nd3+ {[%clk 0:00:42.9]} 49. Kf3 {[%clk 0:00:11.3]} 49... Nde5+ {[%clk
0:00:43]} 50. Kf4 {[%clk 0:00:11.1]} 50... Nxg4 {[%clk 0:00:43.4]} 51. Kxg4
{[%clk 0:00:11.5]} 51... Nxb2 {[%clk 0:00:44.1]} 52. Kf5 {[%clk 0:00:11]} 52...
Nc4 {[%clk 0:00:44.4]} 53. Ne2 {[%clk 0:00:10.4]} 53... Nxa3 {[%clk 0:00:44.6]}
54. Nd4 {[%clk 0:00:10.4]} 54... Nc4 {[%clk 0:00:44.9]} 55. Nxc6+ {[%clk
0:00:10.6]} 55... Kd7 {[%clk 0:00:43.1]} 56. Nxa7 {[%clk 0:00:11.5]} 56... Na3
{[%clk 0:00:36.9]} 57. Kf6 {[%clk 0:00:08.9]} 57... Kc7 {[%clk 0:00:35.9]} 58.
Kxf7 {[%clk 0:00:08.6]} 58... Kb7 {[%clk 0:00:32.8]} 59. Ke6 {[%clk 0:00:08.9]}
59... Kxa7 {[%clk 0:00:31.6]} 60. Kxd6 {[%clk 0:00:09.1]} 60... Kb7 {[%clk
0:00:31.6]} 61. Kd7 {[%clk 0:00:06.4]} 61... Nc4 {[%clk 0:00:31.6]} 62. e5
{[%clk 0:00:04.7]} 62... Nxe5+ {[%clk 0:00:31.9]} 1/2-1/2

[Event "Early-Titled-Tuesday-Blitz-December-26-2023"]
[Site "Chess.com"]
[Date "2023.12.26"]
[Round "11"]
[White "djokovic74"]
[Black "UK_23"]
[Result "1-0"]
[WhiteElo "2659"]
[BlackElo "2366"]
[TimeControl "180+1"]
[EndTime "10:06:15 PST"]
[Termination "djokovic74 won by checkmate"]

1. c4 {[%clk 0:03:00.8]} 1... e6 {[%clk 0:02:59.5]} 2. Nf3 {[%clk 0:03:00.8]}
2... d5 {[%clk 0:03:00.4]} 3. g3 {[%clk 0:03:01.3]} 3... Nf6 {[%clk 0:03:00.4]}
4. d4 {[%clk 0:03:00.6]} 4... Be7 {[%clk 0:03:00.1]} 5. Bg2 {[%clk 0:03:01]}
5... O-O {[%clk 0:03:00.6]} 6. Nc3 {[%clk 0:02:54.1]} 6... c6 {[%clk 0:03:00.3]}
7. O-O {[%clk 0:02:53.4]} 7... b6 {[%clk 0:02:59.6]} 8. Nd2 {[%clk 0:02:36.6]}
8... Ba6 {[%clk 0:02:54.8]} 9. b3 {[%clk 0:02:24.8]} 9... Nbd7 {[%clk
0:02:54.1]} 10. Re1 {[%clk 0:02:23.7]} 10... Rc8 {[%clk 0:02:49]} 11. Bb2 {[%clk
0:02:22]} 11... b5 {[%clk 0:02:44.5]} 12. c5 {[%clk 0:02:18.9]} 12... b4 {[%clk
0:02:44.1]} 13. Ncb1 {[%clk 0:02:11]} 13... Re8 {[%clk 0:02:38.5]} 14. a3 {[%clk
0:02:05.9]} 14... bxa3 {[%clk 0:02:21]} 15. Rxa3 {[%clk 0:02:04.9]} 15... Nb8
{[%clk 0:02:16.6]} 16. Nc3 {[%clk 0:02:02.6]} 16... Qc7 {[%clk 0:02:11.7]} 17.
Nf3 {[%clk 0:01:27.5]} 17... Nfd7 {[%clk 0:02:07.1]} 18. Qc2 {[%clk 0:01:17.6]}
18... e5 {[%clk 0:02:02.4]} 19. e3 {[%clk 0:01:16]} 19... Bf6 {[%clk 0:01:59.6]}
20. Rea1 {[%clk 0:01:11.7]} 20... Qb7 {[%clk 0:01:55.4]} 21. Bf1 {[%clk
0:00:59.3]} 21... Bxf1 {[%clk 0:01:54.1]} 22. Rxa7 {[%clk 0:00:58.1]} 22... Bd3
{[%clk 0:01:43.8]} 23. Qxd3 {[%clk 0:00:56]} 23... Qxb3 {[%clk 0:01:43.9]} 24.
Qd2 {[%clk 0:00:35.8]} 24... exd4 {[%clk 0:01:31.8]} 25. exd4 {[%clk 0:00:34.6]}
25... g6 {[%clk 0:01:24.8]} 26. R1a3 {[%clk 0:00:29.8]} 26... Qb4 {[%clk
0:01:15.2]} 27. Kg2 {[%clk 0:00:22.6]} 27... Kg7 {[%clk 0:01:14.7]} 28. h4
{[%clk 0:00:20.7]} 28... h5 {[%clk 0:01:14.3]} 29. R7a4 {[%clk 0:00:16.7]} 29...
Qb7 {[%clk 0:01:13.7]} 30. Ra7 {[%clk 0:00:17.2]} 30... Qb4 {[%clk 0:01:13.7]}
31. Bc1 {[%clk 0:00:14.9]} 31... Re6 {[%clk 0:01:07.2]} 32. R7a4 {[%clk
0:00:11.8]} 32... Qb7 {[%clk 0:01:05.9]} 33. Ra7 {[%clk 0:00:11.4]} 33... Qb4
{[%clk 0:01:06]} 34. R7a4 {[%clk 0:00:08.6]} 34... Qb7 {[%clk 0:01:05.4]} 35.
Qh6+ {[%clk 0:00:08.9]} 35... Kg8 {[%clk 0:01:04]} 36. Ng5 {[%clk 0:00:06.6]}
36... Bxg5 {[%clk 0:00:58.6]} 37. Bxg5 {[%clk 0:00:06.8]} 37... Rce8 {[%clk
0:00:57.5]} 38. Bf4 {[%clk 0:00:05.3]} 38... Qb2 {[%clk 0:00:49.5]} 39. Ra7
{[%clk 0:00:04.5]} 39... Qc2 {[%clk 0:00:48.5]} 40. Bd6 {[%clk 0:00:03]} 40...
Qf5 {[%clk 0:00:44]} 41. Bf4 {[%clk 0:00:02.4]} 41... Qc2 {[%clk 0:00:43]} 42.
Rb7 {[%clk 0:00:02]} 42... Re1 {[%clk 0:00:34.3]} 43. Qg5 {[%clk 0:00:01.9]}
43... R1e6 {[%clk 0:00:16.8]} 44. Bxb8 {[%clk 0:00:02.2]} 44... Nxb8 {[%clk
0:00:16.8]} 45. Qf4 {[%clk 0:00:02.8]} 45... Nd7 {[%clk 0:00:16.7]} 46. Rxd7
{[%clk 0:00:02.6]} 46... Qb2 {[%clk 0:00:16.4]} 47. Raa7 {[%clk 0:00:02.2]}
47... f6 {[%clk 0:00:10.1]} 48. Rg7+ {[%clk 0:00:02.5]} 48... Kh8 {[%clk
0:00:09.3]} 49. Qh6# {[%clk 0:00:02.5]} 1-0

[Event "Early-Titled-Tuesday-Blitz-December-26-2023"]
[Site "Chess.com"]
[Date "2023.12.26"]
[Round "11"]
[White "drillovsky"]
[Black "NelsonLinda"]
[Result "0-1"]
[WhiteElo "2414"]
[BlackElo "2613"]
[TimeControl "180+1"]
[EndTime "10:06:21 PST"]
[Termination "NelsonLinda won on time"]

1. e4 {[%clk 0:03:00.7]} 1... c5 {[%clk 0:01:45.5]} 2. Nf3 {[%clk 0:02:59]} 2...
e6 {[%clk 0:01:45.7]} 3. d4 {[%clk 0:02:59]} 3... cxd4 {[%clk 0:01:46.6]} 4.
Nxd4 {[%clk 0:02:59.4]} 4... Nf6 {[%clk 0:01:47.3]} 5. Nc3 {[%clk 0:02:59]} 5...
d6 {[%clk 0:01:47.9]} 6. Bg5 {[%clk 0:02:55.3]} 6... Be7 {[%clk 0:01:45.5]} 7.
Qd2 {[%clk 0:02:55.7]} 7... h6 {[%clk 0:01:38.9]} 8. Bh4 {[%clk 0:02:30]} 8...
O-O {[%clk 0:01:38.8]} 9. O-O-O {[%clk 0:02:24.9]} 9... a6 {[%clk 0:01:38.4]}
10. Bxf6 {[%clk 0:01:58.1]} 10... Bxf6 {[%clk 0:01:38.5]} 11. f4 {[%clk
0:01:58.6]} 11... b5 {[%clk 0:01:34.1]} 12. Kb1 {[%clk 0:01:54.2]} 12... Bb7
{[%clk 0:01:32]} 13. Nf3 {[%clk 0:01:43.9]} 13... Be7 {[%clk 0:01:32]} 14. Bd3
{[%clk 0:01:38.7]} 14... Nd7 {[%clk 0:01:31.2]} 15. g4 {[%clk 0:01:38.1]} 15...
Nc5 {[%clk 0:01:21]} 16. Rde1 {[%clk 0:01:32.7]} 16... b4 {[%clk 0:01:19.3]} 17.
Nd1 {[%clk 0:01:32.6]} 17... d5 {[%clk 0:01:04.7]} 18. e5 {[%clk 0:01:29.5]}
18... Ne4 {[%clk 0:01:03.5]} 19. Qg2 {[%clk 0:01:22]} 19... a5 {[%clk
0:00:50.8]} 20. Nf2 {[%clk 0:00:59.7]} 20... Nxf2 {[%clk 0:00:11.8]} 21. Qxf2
{[%clk 0:01:00.6]} 21... b3 {[%clk 0:00:11.8]} 22. cxb3 {[%clk 0:00:56.3]} 22...
a4 {[%clk 0:00:12.1]} 23. Nd4 {[%clk 0:00:48]} 23... axb3 {[%clk 0:00:11.9]} 24.
Nxb3 {[%clk 0:00:46.2]} 24... Qd7 {[%clk 0:00:09.8]} 25. f5 {[%clk 0:00:41.8]}
25... Qa4 {[%clk 0:00:08.5]} 26. Nc1 {[%clk 0:00:42.3]} 26... Rfc8 {[%clk
0:00:07.2]} 27. f6 {[%clk 0:00:31.2]} 27... Bc5 {[%clk 0:00:07.4]} 28. Qe2
{[%clk 0:00:16.1]} 28... Bd4 {[%clk 0:00:07]} 29. fxg7 {[%clk 0:00:14.5]} 29...
Ba6 {[%clk 0:00:04.2]} 30. Bxa6 {[%clk 0:00:12]} 30... Rxa6 {[%clk 0:00:04.4]}
31. b3 {[%clk 0:00:12.5]} 31... Qb4 {[%clk 0:00:03]} 32. Nd3 {[%clk 0:00:12.3]}
32... Qc3 {[%clk 0:00:03.5]} 33. Nb2 {[%clk 0:00:11.1]} 33... Rac6 {[%clk
0:00:02.7]} 34. g5 {[%clk 0:00:03.6]} 34... Bxe5 {[%clk 0:00:02.4]} 35. gxh6
{[%clk 0:00:03.3]} 35... Qxb2+ {[%clk 0:00:01.7]} 36. Qxb2 {[%clk 0:00:02.9]}
36... Bxb2 {[%clk 0:00:02.6]} 37. Kxb2 {[%clk 0:00:03.8]} 37... Rc2+ {[%clk
0:00:03.1]} 38. Kb1 {[%clk 0:00:04.1]} 38... Rg2 {[%clk 0:00:02.9]} 39. Rc1
{[%clk 0:00:04.6]} 39... Ra8 {[%clk 0:00:02.8]} 40. a4 {[%clk 0:00:04.2]} 40...
Rg6 {[%clk 0:00:02.6]} 41. Rhg1 {[%clk 0:00:03.2]} 41... Rxh6 {[%clk 0:00:03.1]}
42. Rc7 {[%clk 0:00:03.7]} 42... Rxh2 {[%clk 0:00:03.1]} 43. a5 {[%clk 0:00:04]}
43... Rh3 {[%clk 0:00:02.9]} 44. a6 {[%clk 0:00:04.1]} 44... Rb8 {[%clk
0:00:03.6]} 45. a7 {[%clk 0:00:03.8]} 45... Rhxb3+ {[%clk 0:00:04.2]} 46. Kc2
{[%clk 0:00:02.7]} 46... Rb2+ {[%clk 0:00:04.2]} 47. Kd3 {[%clk 0:00:03.2]}
47... Ra8 {[%clk 0:00:04.3]} 48. Kd4 {[%clk 0:00:03]} 48... Ra2 {[%clk
0:00:04.5]} 49. Ke5 {[%clk 0:00:03.3]} 49... R2xa7 {[%clk 0:00:04.6]} 50. Rxa7
{[%clk 0:00:03.4]} 50... Rxa7 {[%clk 0:00:05.5]} 51. Kf6 {[%clk 0:00:03.8]}
51... Ra2 {[%clk 0:00:05.8]} 0-1

[Event "Early-Titled-Tuesday-Blitz-December-26-2023"]
[Site "Chess.com"]
[Date "2023.12.26"]
[Round "11"]
[White "TitarovVasiliYouTube"]
[Black "aksuliini1"]
[Result "0-1"]
[WhiteElo "2534"]
[BlackElo "2486"]
[TimeControl "180+1"]
[EndTime "10:06:28 PST"]
[Termination "aksuliini1 won on time"]

1. e4 {[%clk 0:03:00.9]} 1... c6 {[%clk 0:02:59.6]} 2. Nc3 {[%clk 0:02:59.4]}
2... d5 {[%clk 0:03:00.5]} 3. Nf3 {[%clk 0:03:00.3]} 3... Bg4 {[%clk 0:02:59.6]}
4. h3 {[%clk 0:03:00.1]} 4... Bxf3 {[%clk 0:02:59.7]} 5. Qxf3 {[%clk 0:03:01]}
5... e6 {[%clk 0:03:00.2]} 6. g3 {[%clk 0:02:58.3]} 6... Nf6 {[%clk 0:02:58.3]}
7. Bg2 {[%clk 0:02:58.6]} 7... Nbd7 {[%clk 0:02:57.7]} 8. O-O {[%clk 0:02:58.7]}
8... Bd6 {[%clk 0:02:54.2]} 9. d4 {[%clk 0:02:57.8]} 9... dxe4 {[%clk
0:02:51.9]} 10. Nxe4 {[%clk 0:02:58.7]} 10... Nxe4 {[%clk 0:02:52.8]} 11. Qxe4
{[%clk 0:02:59.6]} 11... Nf6 {[%clk 0:02:53.6]} 12. Qd3 {[%clk 0:03:00.1]} 12...
O-O {[%clk 0:02:54.2]} 13. c4 {[%clk 0:02:58.7]} 13... e5 {[%clk 0:02:46.9]} 14.
Rd1 {[%clk 0:02:56.5]} 14... Re8 {[%clk 0:02:17.5]} 15. Bg5 {[%clk 0:02:44.5]}
15... h6 {[%clk 0:02:12.3]} 16. Be3 {[%clk 0:02:32.9]} 16... Qe7 {[%clk
0:01:55.9]} 17. Qb3 {[%clk 0:02:11.1]} 17... Red8 {[%clk 0:01:19.8]} 18. Rd2
{[%clk 0:01:38.1]} 18... exd4 {[%clk 0:01:14.6]} 19. Rxd4 {[%clk 0:01:21.5]}
19... Bc5 {[%clk 0:00:45.2]} 20. Rxd8+ {[%clk 0:01:07.3]} 20... Rxd8 {[%clk
0:00:46.1]} 21. Re1 {[%clk 0:01:04.2]} 21... Bxe3 {[%clk 0:00:39.7]} 22. Rxe3
{[%clk 0:01:05.1]} 22... Qd7 {[%clk 0:00:39.3]} 23. Kh2 {[%clk 0:01:04]} 23...
b6 {[%clk 0:00:35.8]} 24. Qa4 {[%clk 0:00:53.2]} 24... c5 {[%clk 0:00:32.9]} 25.
Ra3 {[%clk 0:00:53.1]} 25... Qd2 {[%clk 0:00:28.9]} 26. Qxa7 {[%clk 0:00:48]}
26... Qxf2 {[%clk 0:00:26.1]} 27. Qxb6 {[%clk 0:00:40.7]} 27... Rd2 {[%clk
0:00:25.7]} 28. Ra8+ {[%clk 0:00:40.5]} 28... Kh7 {[%clk 0:00:25.4]} 29. Qb7
{[%clk 0:00:39.9]} 29... Rxb2 {[%clk 0:00:23.2]} 30. Qc6 {[%clk 0:00:38.1]}
30... h5 {[%clk 0:00:20.3]} 31. Ra3 {[%clk 0:00:33.6]} 31... h4 {[%clk
0:00:19.6]} 32. Qf3 {[%clk 0:00:17.8]} 32... Qxf3 {[%clk 0:00:15.1]} 33. Rxf3
{[%clk 0:00:18.6]} 33... hxg3+ {[%clk 0:00:15.5]} 34. Kxg3 {[%clk 0:00:19.4]}
34... Rxa2 {[%clk 0:00:16]} 35. Rf5 {[%clk 0:00:17.9]} 35... Ra3+ {[%clk
0:00:16.1]} 36. Kh2 {[%clk 0:00:18]} 36... Ra5 {[%clk 0:00:16.4]} 37. Bc6 {[%clk
0:00:16.5]} 37... Kg6 {[%clk 0:00:15.6]} 38. Re5 {[%clk 0:00:17]} 38... Kh6
{[%clk 0:00:14.9]} 39. Bb5 {[%clk 0:00:17.2]} 39... Ra2+ {[%clk 0:00:13.7]} 40.
Kg3 {[%clk 0:00:17.8]} 40... Nh5+ {[%clk 0:00:13.6]} 41. Kf3 {[%clk 0:00:17.6]}
41... Ra3+ {[%clk 0:00:13.7]} 42. Kf2 {[%clk 0:00:09.5]} 42... Rxh3 {[%clk
0:00:13.2]} 43. Rxc5 {[%clk 0:00:09.6]} 43... g5 {[%clk 0:00:13.3]} 44. Be8
{[%clk 0:00:07.7]} 44... g4 {[%clk 0:00:09.2]} 45. Bxf7 {[%clk 0:00:05.8]} 45...
Rf3+ {[%clk 0:00:09.2]} 46. Kg2 {[%clk 0:00:04.7]} 46... Rxf7 {[%clk 0:00:10.1]}
47. Rc6+ {[%clk 0:00:05.3]} 47... Kg5 {[%clk 0:00:10]} 48. c5 {[%clk 0:00:05.8]}
48... Nf4+ {[%clk 0:00:09.8]} 49. Kg1 {[%clk 0:00:05.4]} 49... Ne2+ {[%clk
0:00:09.8]} 50. Kg2 {[%clk 0:00:05.1]} 50... g3 {[%clk 0:00:09.7]} 51. Re6
{[%clk 0:00:05.4]} 51... Rf2+ {[%clk 0:00:09.3]} 52. Kh3 {[%clk 0:00:06.1]}
52... g2 {[%clk 0:00:06.3]} 53. Re8 {[%clk 0:00:01.6]} 53... g1=Q {[%clk
0:00:05.6]} 0-1

[Event "Early-Titled-Tuesday-Blitz-December-26-2023"]
[Site "Chess.com"]
[Date "2023.12.26"]
[Round "11"]
[White "Lady_Nika"]
[Black "DvaHrasta"]
[Result "0-1"]
[WhiteElo "2585"]
[BlackElo "2494"]
[TimeControl "180+1"]
[EndTime "10:07:04 PST"]
[Termination "DvaHrasta won by checkmate"]

1. d4 {[%clk 0:03:00.9]} 1... Nf6 {[%clk 0:02:59.3]} 2. e3 {[%clk 0:03:00.9]}
2... e6 {[%clk 0:02:58.1]} 3. f4 {[%clk 0:03:01.1]} 3... b6 {[%clk 0:02:53.5]}
4. Nf3 {[%clk 0:03:02]} 4... Bb7 {[%clk 0:02:53.6]} 5. c3 {[%clk 0:03:02.8]}
5... c5 {[%clk 0:02:51.9]} 6. Bd3 {[%clk 0:03:03]} 6... d5 {[%clk 0:02:51.1]} 7.
Nbd2 {[%clk 0:03:02.3]} 7... a6 {[%clk 0:02:49.9]} 8. O-O {[%clk 0:03:01.6]}
8... Ne4 {[%clk 0:02:47.1]} 9. Ne5 {[%clk 0:02:59.1]} 9... Nd7 {[%clk
0:02:40.9]} 10. Qf3 {[%clk 0:02:49.7]} 10... Nd6 {[%clk 0:02:24.2]} 11. b3
{[%clk 0:02:22.4]} 11... Be7 {[%clk 0:02:21.5]} 12. Bb2 {[%clk 0:02:15.6]} 12...
Qc7 {[%clk 0:02:03.9]} 13. Qh3 {[%clk 0:02:07.5]} 13... O-O-O {[%clk 0:01:59.4]}
14. c4 {[%clk 0:02:07.6]} 14... f6 {[%clk 0:01:52.4]} 15. Nxd7 {[%clk
0:02:00.8]} 15... Qxd7 {[%clk 0:01:51]} 16. dxc5 {[%clk 0:02:00.9]} 16... bxc5
{[%clk 0:01:45.3]} 17. cxd5 {[%clk 0:02:01.1]} 17... exd5 {[%clk 0:01:43.1]} 18.
f5 {[%clk 0:02:00.6]} 18... Kb8 {[%clk 0:01:35.2]} 19. Rfc1 {[%clk 0:01:57.2]}
19... Rc8 {[%clk 0:01:34.4]} 20. a4 {[%clk 0:01:52.2]} 20... Nf7 {[%clk
0:01:32.1]} 21. Rc2 {[%clk 0:01:35.4]} 21... Bd6 {[%clk 0:01:24.2]} 22. Rac1
{[%clk 0:01:29.4]} 22... Qe7 {[%clk 0:01:21.6]} 23. Nf1 {[%clk 0:01:24.8]} 23...
Ng5 {[%clk 0:01:17.7]} 24. Qh4 {[%clk 0:01:22.6]} 24... h5 {[%clk 0:01:16.4]}
25. Ba3 {[%clk 0:00:50.5]} 25... Ka8 {[%clk 0:01:12.2]} 26. Qe1 {[%clk
0:00:47.5]} 26... h4 {[%clk 0:01:04.6]} 27. Qa5 {[%clk 0:00:44.9]} 27... Rc6
{[%clk 0:00:59.5]} 28. Bxc5 {[%clk 0:00:35.8]} 28... Rhc8 {[%clk 0:00:47.5]} 29.
Bxd6 {[%clk 0:00:29.6]} 29... Qxd6 {[%clk 0:00:47.5]} 30. Rxc6 {[%clk
0:00:28.5]} 30... Rxc6 {[%clk 0:00:47.2]} 31. Rxc6 {[%clk 0:00:26.6]} 31... Qxc6
{[%clk 0:00:47.5]} 32. Bb5 {[%clk 0:00:21.5]} 32... Qd6 {[%clk 0:00:43]} 33. h3
{[%clk 0:00:18.9]} 33... d4 {[%clk 0:00:42.4]} 34. exd4 {[%clk 0:00:13.5]} 34...
Qxd4+ {[%clk 0:00:42.3]} 35. Kh2 {[%clk 0:00:13.3]} 35... Qf4+ {[%clk
0:00:38.1]} 36. Kg1 {[%clk 0:00:13.5]} 36... Qxf5 {[%clk 0:00:36.6]} 37. Qd8+
{[%clk 0:00:13.1]} 37... Qc8 {[%clk 0:00:36.6]} 38. Qxc8+ {[%clk 0:00:09.4]}
38... Bxc8 {[%clk 0:00:36.8]} 39. Bc6+ {[%clk 0:00:09.9]} 39... Ka7 {[%clk
0:00:36.7]} 40. Ne3 {[%clk 0:00:09.8]} 40... Kb6 {[%clk 0:00:34.7]} 41. Bd5
{[%clk 0:00:09.7]} 41... Kc5 {[%clk 0:00:32.8]} 42. Kf2 {[%clk 0:00:10]} 42...
a5 {[%clk 0:00:32.4]} 43. Bc4 {[%clk 0:00:10]} 43... Kd4 {[%clk 0:00:30.7]} 44.
Nd5 {[%clk 0:00:07.7]} 44... Bb7 {[%clk 0:00:29.6]} 45. Ne7 {[%clk 0:00:05.9]}
45... Ne4+ {[%clk 0:00:29.2]} 46. Kg1 {[%clk 0:00:05.7]} 46... Nd6 {[%clk
0:00:27.6]} 47. Bg8 {[%clk 0:00:03.8]} 47... g5 {[%clk 0:00:26.6]} 48. Ng6
{[%clk 0:00:04]} 48... Kc3 {[%clk 0:00:26]} 49. Nf8 {[%clk 0:00:04.1]} 49... Be4
{[%clk 0:00:23.5]} 50. Nd7 {[%clk 0:00:04.3]} 50... f5 {[%clk 0:00:23.5]} 51.
Nc5 {[%clk 0:00:04.6]} 51... Bc2 {[%clk 0:00:22.2]} 52. Kf2 {[%clk 0:00:04.7]}
52... Kb4 {[%clk 0:00:22]} 53. Na6+ {[%clk 0:00:03.2]} 53... Ka3 {[%clk
0:00:18.8]} 54. Nc5 {[%clk 0:00:02.2]} 54... Ne4+ {[%clk 0:00:17.6]} 55. Nxe4
{[%clk 0:00:02.7]} 55... Bxe4 {[%clk 0:00:17.9]} 56. Ke3 {[%clk 0:00:02.9]}
56... Bc2 {[%clk 0:00:18]} 57. Kd4 {[%clk 0:00:03.3]} 57... Bxb3 {[%clk
0:00:18.1]} 58. Bh7 {[%clk 0:00:03.9]} 58... Bc2 {[%clk 0:00:17.7]} 59. Ke5
{[%clk 0:00:03.9]} 59... Kxa4 {[%clk 0:00:16.8]} 60. Kf6 {[%clk 0:00:04.3]}
60... Kb4 {[%clk 0:00:14.8]} 61. Kxg5 {[%clk 0:00:04.2]} 61... a4 {[%clk
0:00:15.3]} 62. Kxh4 {[%clk 0:00:03.3]} 62... a3 {[%clk 0:00:15.3]} 63. Bg8
{[%clk 0:00:03.8]} 63... Bb3 {[%clk 0:00:15.1]} 64. Bxb3 {[%clk 0:00:03.8]}
64... Kxb3 {[%clk 0:00:15.1]} 65. g4 {[%clk 0:00:04.7]} 65... fxg4 {[%clk
0:00:14.6]} 66. hxg4 {[%clk 0:00:05.6]} 66... a2 {[%clk 0:00:15.1]} 67. g5
{[%clk 0:00:06.5]} 67... a1=Q {[%clk 0:00:15.1]} 68. Kh5 {[%clk 0:00:07.4]}
68... Qg7 {[%clk 0:00:15.1]} 69. g6 {[%clk 0:00:07.6]} 69... Kc4 {[%clk
0:00:15.2]} 70. Kg5 {[%clk 0:00:07.6]} 70... Kd5 {[%clk 0:00:15.5]} 71. Kh5
{[%clk 0:00:08]} 71... Ke5 {[%clk 0:00:15.5]} 72. Kg5 {[%clk 0:00:08.9]} 72...
Ke6 {[%clk 0:00:13.9]} 73. Kh5 {[%clk 0:00:09.8]} 73... Kf5 {[%clk 0:00:14]} 74.
Kh4 {[%clk 0:00:10]} 74... Qxg6 {[%clk 0:00:14.2]} 75. Kh3 {[%clk 0:00:10.9]}
75... Qg1 {[%clk 0:00:13.9]} 76. Kh4 {[%clk 0:00:10.9]} 76... Qg4# {[%clk
0:00:13.6]} 0-1